Cogmind - Beta 9.2 @@@ ROGUE MODE // 2019.11.23 @ 11:48:36 Player: Alexbot Result: Escaped! Performance ------------- Evolutions (9) 4500 Regions Visited (34) 6800 Robots Destroyed (236) 1180 Value Destroyed (10536) 10536 Prototype IDs (69) 1380 Alien Tech Used (2) 400 Bonus (11016) 11016 TOTAL SCORE: 35812 Bonus ------- High Alert Combat Kills 566 Follower Combat Kills 1781 Network Hubs Disabled 200 Aligned with FarCom 300 Met Zhirov 300 Met Warlord at Base 500 MAIN.C Attacked Warlord 500 Warlord Defense Kill 60 Built Enhanced Grunts 300 A7 Reached Mainframe 300 Met R17 at Cetus 500 Found Hidden Lab 3000 Met Warlord at Research 2000 Win 3000 Friendly Fire -2291 Cogmind --------- Core Integrity 1550/1600 Matter 261/300 Energy 926/1040 System Corruption 0% Temperature Cool (0) Movement Core (100) Ox1 Location To Epsilon Eridani Parts ------- > --- POWER (2) -------- Micro Fission Core Micro Fission Core > --- PROPULSION (2) --- (None) > --- UTILITY (18) ----- Large Storage Unit Large Storage Unit Large Storage Unit Advanced Energy Well Inertial Stasis Machine Inertial Stasis Machine Inertial Stasis Machine Experimental Terrain Scanner Experimental Terrain Scan Processor Makeshift Transmission Jammer Advanced Cloaking Device Experimental Utility Shielding Experimental Powered Armor Makeshift Hacking Suite Makeshift Hacking Suite Improved Hacking Suite Advanced System Shield Quantum Router > --- WEAPON (3) ------- HERF Cannon Compact Tesla Bomb Launcher Molecular Scythe > --- INVENTORY (22) --- Experimental Coolant Injector Improved Matter Compressor (300) Experimental Utility Shielding Damper Plating Advanced Powered Armor Improved Focal Shield Advanced Force Field Makeshift System Restoration Module Transdimensional Reconstructor Core Regenerator Tachyon Dispersion Ray Enhanced Nova Cannon AWS/Gauss Compact Tesla Bomb Launcher Mini Smartbomb Launcher Molecular Deconstructor Peak State ------------ > --- POWER ------------ Micro Fission Core Micro Fission Core > --- PROPULSION ------- (None) > --- UTILITY ---------- Large Storage Unit Large Storage Unit Large Storage Unit Inertial Stasis Machine Inertial Stasis Machine Inertial Stasis Machine Experimental Terrain Scan Processor Makeshift Transmission Jammer Advanced Cloaking Device Experimental Utility Shielding Advanced Powered Armor Experimental Powered Armor Advanced Force Field Makeshift Hacking Suite Makeshift Hacking Suite Improved Hacking Suite Advanced System Shield Quantum Router > --- WEAPON ----------- HERF Cannon Mini Smartbomb Launcher Molecular Scythe > --- INVENTORY -------- Experimental Coolant Injector Advanced Energy Well Improved Matter Compressor Experimental Terrain Scanner Experimental Utility Shielding Damper Plating Improved Focal Shield Makeshift System Restoration Module Transdimensional Reconstructor Core Regenerator Tachyon Dispersion Ray Enhanced Nova Cannon AWS/Gauss Compact Tesla Bomb Launcher Compact Tesla Bomb Launcher Molecular Deconstructor [Rating: 157] Favorites ----------- Power Micro Fission Core Engine Light Ion Engine Power Core Micro Fission Core Reactor Light Antimatter Reactor Propulsion None Utility Large Storage Unit Device Advanced Weight Redist. System Storage Large Storage Unit Processor Experimental Terrain Scan Processor Hackware Improved Hacking Suite Protection Centrium Medium Armor Plating Weapon Power Sword Energy Gun Gatling Laser Energy Cannon Heavy Particle Cannon Ballistic Gun Autogun Ballistic Cannon Hypervelocity Gauss Cannon Launcher Grenade Launcher Special Weapon Molecular Deconstructor Slashing Weapon Power Sword Piercing Weapon Lance Build | -11 -10 -10 -9 -9 -9 -8 -8 -7 -7 -7 -7 -6 -6 -6 -6 -6 -6 -5 -5 -5 -5 -5 -5 -4 -4 -4 -4 -4 -3 -3 -3 -3 -2 -1 ------- Run | Scr Mat Min Mat Min Exi Min Mat Fac Low Low Zio Pro Fac Ext Cet Arc Hub Fac Was Fac Upp Upp War Pro Fac Upp Upp Zhi Pro Res Arm Lab Res Acc Slots Evolved 18 | . . . 2 . . . 2 2 . . . . 2 . . . . 2 . . . . . . 2 . . . . 2 . . 2 2 Power 1 | . . . . . . . 1 . . . . . . . . . . . . . . . . . . . . . . . . . . . Propulsion . | . . . . . . . . . . . . . . . . . . . . . . . . . . . . . . . . . . . Utility 16 | . . . 2 . . . 1 2 . . . . 2 . . . . 2 . . . . . . 2 . . . . 2 . . 2 1 Weapon 1 | . . . . . . . . . . . . . . . . . . . . . . . . . . . . . . . . . . 1 Parts Attached 497 | 4 8 . 5 1 . . 12 16 . 4 3 12 14 11 9 5 45 49 1 52 2 . 5 14 61 7 23 4 5 59 38 6 8 14 Power 34 | 1 2 . 1 . . . 3 2 . 2 1 2 1 1 . 2 . 3 . . . . . . 4 . 3 . . 5 . 1 . . Engine 7 | 1 2 . 1 . . . 1 1 . . . . . 1 . . . . . . . . . . . . . . . . . . . . Core 19 | . . . . . . . 2 1 . 2 1 1 . . . 2 . 3 . . . . . . 3 . 1 . . 2 . 1 . . Reactor 8 | . . . . . . . . . . . . 1 1 . . . . . . . . . . . 1 . 2 . . 3 . . . . Propulsion . | . . . . . . . . . . . . . . . . . . . . . . . . . . . . . . . . . . . Treads . | . . . . . . . . . . . . . . . . . . . . . . . . . . . . . . . . . . . Leg . | . . . . . . . . . . . . . . . . . . . . . . . . . . . . . . . . . . . Wheel . | . . . . . . . . . . . . . . . . . . . . . . . . . . . . . . . . . . . Hover . | . . . . . . . . . . . . . . . . . . . . . . . . . . . . . . . . . . . Flight . | . . . . . . . . . . . . . . . . . . . . . . . . . . . . . . . . . . . Utility 318 | 1 2 . 2 . . . 5 8 . 2 . 8 7 6 6 2 30 28 1 38 1 . 2 9 44 6 8 4 5 42 30 2 7 12 Device 221 | . 1 . 1 . . . 3 7 . . . 7 4 5 4 1 24 18 1 28 1 . 2 5 33 4 6 1 3 30 21 . 5 6 Storage 28 | 1 1 . . . . . 1 . . 1 . . . 1 1 1 2 2 . 3 . . . 1 4 . . 2 . 4 2 . . 1 Processor 4 | . . . . . . . . . . . . . . . . . . 1 . . . . . 1 1 . . . . . . . 1 . Hackware 8 | . . . . . . . . . . . . 1 1 . . . . . . 2 . . . . 1 1 . . . 1 . 1 . . Protection 57 | . . . 1 . . . 1 1 . 1 . . 2 . 1 . 4 7 . 5 . . . 2 5 1 2 1 2 7 7 1 1 5 Artifact . | . . . . . . . . . . . . . . . . . . . . . . . . . . . . . . . . . . . Weapon 145 | 2 4 . 2 1 . . 4 6 . . 2 2 6 4 3 1 15 18 . 14 1 . 3 5 13 1 12 . . 12 8 3 1 2 Energy Gun 22 | 2 1 . . . . . 2 3 . . 1 . . 1 . . . . . . . . 1 2 4 . 3 . . . . 2 . . Energy Cannon 11 | . . . 1 . . . 1 . . . . . . . . . . . . . . . . . . . . . . 5 3 . 1 . Ballistic Gun 25 | . 2 . 1 . . . 1 2 . . . . . . . . 6 9 . 4 . . . . . . . . . . . . . . Ballistic Cannon 34 | . 1 . . . . . . . . . 1 2 3 2 2 1 2 2 . 5 . . . 2 4 . 3 . . 4 . . . . Launcher 27 | . . . . 1 . . . 1 . . . . 1 1 . . 2 3 . 2 1 . 1 1 2 1 4 . . 1 3 1 . 1 Special Weapon 1 | . . . . . . . . . . . . . . . . . . . . . . . . . . . . . . . 1 . . . Impact Weapon . | . . . . . . . . . . . . . . . . . . . . . . . . . . . . . . . . . . . Slashing Weapon 18 | . . . . . . . . . . . . . 2 . 1 . 5 1 . . . . . . 3 . 2 . . 2 1 . . 1 Piercing Weapon 7 | . . . . . . . . . . . . . . . . . . 3 . 3 . . 1 . . . . . . . . . . . Special Melee Weapon . | . . . . . . . . . . . . . . . . . . . . . . . . . . . . . . . . . . . Unidentified Prototypes 18 | . . . . . . . 1 . . . . . 1 . 2 1 1 2 . . . . 1 . . . . 4 . . 1 4 . . Parts Lost 36 | . 2 . 1 . . . . 7 . 3 . 6 . 1 . . 3 1 . . . . 2 1 1 . 2 . . 5 1 . . . Power 10 | . . . . . . . . 2 . 1 . 2 . 1 . . . . . . . . . . 1 . 1 . . 2 . . . . Propulsion . | . . . . . . . . . . . . . . . . . . . . . . . . . . . . . . . . . . . Utility 8 | . . . . . . . . 1 . 2 . 1 . . . . 1 1 . . . . 1 1 . . . . . . . . . . Weapon 18 | . 2 . 1 . . . . 4 . . . 3 . . . . 2 . . . . . 1 . . . 1 . . 3 1 . . . Highest Loss Streak 5 | . 2 . 1 . . . . 5 . 2 . 2 . 1 . . 1 1 . . . . 2 1 1 . 1 . . 3 1 . . . Average Slot Usage (%) 81 | . 55 71 54 62 66 66 66 74 84 80 83 74 73 85 86 86 83 84 88 87 87 82 81 77 85 86 84 87 87 88 86 86 88 90 Engine 1 | . 7 14 11 11 11 11 9 3 7 3 . . . 3 6 4 . . . . . . . . . . . . . . . . . . Core 7 | . . . . . . . 3 8 7 10 15 10 6 6 6 8 13 11 11 11 11 11 11 11 9 10 4 . . 3 9 8 8 8 Reactor 1 | . . . . . . . . . . . . 2 6 1 . . . . . . . . . . . . 1 10 10 5 . . . . Device 23 | . 7 14 10 11 11 11 13 35 46 36 30 22 23 29 25 26 22 24 23 23 20 23 23 16 24 20 25 24 24 27 22 19 22 23 Storage 15 | . 14 14 11 11 11 11 9 7 7 7 15 15 13 16 20 20 20 18 23 16 17 17 17 18 15 15 15 15 15 14 18 19 17 15 Processor 3 | . . . . . . . . . . . . . . . . . . 3 5 5 5 5 5 6 10 8 5 5 5 4 4 4 4 4 Hackware 10 | . . . . . . . . . . . . 3 8 13 13 13 13 11 11 13 13 11 11 11 10 10 15 15 15 18 19 21 21 20 Protection 4 | . . . 7 11 11 11 14 6 . 5 7 7 3 . . . 3 2 . 2 5 5 4 4 4 8 5 5 5 3 5 4 4 7 Energy Gun 1 | . 17 . . . . . 5 5 . . 6 . . . . . . . . . . . . 3 1 . 1 . . . . 1 . . Ballistic Gun 2 | . 4 28 7 . . . 3 5 15 15 4 . . . . . 1 4 . . . . . . . . . . . . . . . . Ballistic Cannon 2 | . 3 . . . . . . . . . 3 11 6 4 12 13 6 . 11 4 4 . . 2 3 1 3 5 5 1 . . . . Slashing Weapon 1 | . . . . . . . . . . . . . 2 6 . . 2 1 . . . . . . 3 5 3 5 5 3 3 4 3 3 Naked Turns . | . . . . . . . . . . . . . . . . . . . . . . . . . . . . . . . . . . . Heaviest Build 138 | 13 19 19 23 23 23 23 41 40 33 50 53 57 65 64 74 67 69 75 68 108 65 61 61 117 118 118 101 102 135 138 106 87 112 129 Greatest Support 51 | 3 9 9 9 9 9 9 21 39 21 30 30 30 21 21 37 37 37 37 37 37 37 37 37 37 51 51 51 51 51 51 51 51 51 51 Greatest Overweight (x) 38 | 4 2 2 6 2 2 2 2 2 1 3 1 2 3 3 3 1 3 3 1 8 1 1 1 38 3 3 3 1 2 3 2 1 2 2 Average Overweight (x) 1 | 2 1 2 2 2 2 2 1 1 1 1 1 1 2 2 2 1 1 1 1 1 1 1 1 1 1 1 1 1 1 1 1 1 1 1 Largest Inventory Capacity 26 | 6 8 8 8 8 8 8 10 10 10 14 14 14 14 14 18 18 18 18 18 20 20 20 20 20 26 22 22 22 22 22 22 22 22 22 Average Capacity 17 | 5 6 8 8 8 8 8 8 10 10 10 14 14 14 14 17 18 18 18 18 19 20 20 20 20 21 22 22 22 22 22 22 22 22 22 Most Carried 22 | 2 8 8 8 8 8 8 10 10 10 13 14 14 14 14 18 18 18 18 18 20 20 19 20 18 22 22 22 22 22 22 22 22 22 22 Average Carried 16 | . 4 7 7 7 7 8 8 9 10 10 13 12 11 13 16 17 17 17 17 19 19 19 19 16 20 21 21 21 21 21 21 21 21 19 Final Capacity 22 | 6 8 8 8 8 8 8 10 10 10 14 14 14 14 14 18 18 18 18 18 20 20 20 20 20 22 22 22 22 22 22 22 22 22 22 Final Carried 22 | 2 7 8 8 8 8 8 10 10 10 13 14 9 14 14 18 18 17 18 18 20 19 19 18 16 21 22 22 22 22 22 22 22 22 20 Class Distribution -------------------- 33% | Hacker-Mutant 26% | Mutant 20% | Hacker-Assassin 10% | Scavenger-Mutant Dominant Class ---------------- Mutant | -10/Materials Mutant | -10/Mines Mutant | -9/Materials Mutant | -9/Mines Mutant | -9/Exiles Mutant | -8/Mines Mutant | -8/Materials Mutant | -7/Factory Mutant | -7/Lower Caves Mutant | -7/Lower Caves Mutant | -7/Zion Mutant | -6/Proximity Caves Mutant | -6/Factory Hacker-Mutant | -6/Extension Commander-Mutant | -6/Cetus Scavenger-Mutant | -6/Archives Scavenger-Mutant | -6/Hub_04(d) Scavenger-Mutant | -5/Factory Hacker-Mutant | -5/Waste Hacker-Assassin | -5/Factory Hacker-Mutant | -5/Upper Caves Hacker-Mutant | -5/Upper Caves Hacker-Mutant | -5/Warlord Hacker-Mutant | -4/Proximity Caves Hacker-Mutant | -4/Factory Hacker-Mutant | -4/Upper Caves Hacker-Mutant | -4/Upper Caves Hacker-Mutant | -4/Zhirov Hacker-Mutant | -3/Proximity Caves Hacker-Assassin | -3/Research Hacker-Mutant | -3/Armory Wizard-Mutant | -3/Lab Wizard-Assassin | -2/Research Wizard-Assassin | -1/Access Resources | -11 -10 -10 -9 -9 -9 -8 -8 -7 -7 -7 -7 -6 -6 -6 -6 -6 -6 -5 -5 -5 -5 -5 -5 -4 -4 -4 -4 -4 -3 -3 -3 -3 -2 -1 ----------- Run | Scr Mat Min Mat Min Exi Min Mat Fac Low Low Zio Pro Fac Ext Cet Arc Hub Fac Was Fac Upp Upp War Pro Fac Upp Upp Zhi Pro Res Arm Lab Res Acc Matter Collected 10649 | 163 331 148 145 10 . . 150 171 51 165 36 225 188 415 300 120 898 694 353 765 33 74 93 347 799 53 709 126 77 1743 522 223 331 191 Remotely . | . . . . . . . . . . . . . . . . . . . . . . . . . . . . . . . . . . . Salvage Created 12191 | . 298 95 401 . . . 315 478 . 195 . 122 213 173 276 157 1631 623 1035 787 105 89 . 234 1070 53 661 126 49 2049 533 . 249 174 Parts 525 | . 22 5 22 . . . 16 27 . 13 . 7 4 9 7 10 55 38 18 36 1 8 3 13 46 3 26 1 5 79 30 . 14 7 Haulers Intercepted 8 | . 2 . 1 . . . 1 . . . . . . . . . 2 . . . . . . . . . . . . 1 . . 1 . Recyclers Shooed 6 | . 1 . . . . . . 2 . . . . . . . . . . . 1 . . . . 1 . . . . 1 . . . . Parts Field Recycled . | . . . . . . . . . . . . . . . . . . . . . . . . . . . . . . . . . . . Retrieved Matter . | . . . . . . . . . . . . . . . . . . . . . . . . . . . . . . . . . . . Parts Self-Destructed 131 | . . . . . . . . . 4 10 1 6 . . . . . . . . . 5 81 9 . 2 7 1 5 . . . . . Prevented 20 | . . . . . . . . . . . . . . . . . . . . . . . 6 . . . 14 . . . . . . . Kills | -11 -10 -10 -9 -9 -9 -8 -8 -7 -7 -7 -7 -6 -6 -6 -6 -6 -6 -5 -5 -5 -5 -5 -5 -4 -4 -4 -4 -4 -3 -3 -3 -3 -2 -1 ------- Run | Scr Mat Min Mat Min Exi Min Mat Fac Low Low Zio Pro Fac Ext Cet Arc Hub Fac Was Fac Upp Upp War Pro Fac Upp Upp Zhi Pro Res Arm Lab Res Acc Combat Hostiles Destroyed 184 | . 8 2 9 . . . 5 9 . 8 . 7 2 3 2 1 26 11 4 9 4 2 2 9 12 1 12 . 1 20 7 . 6 2 Melee 15 | . . . . . . . . . . . . . . . . . 3 5 . 2 . . . . 1 1 1 . . . 1 . . 1 Guns 46 | . 6 2 4 . . . 2 6 . 8 . . . 1 . . 8 3 . . . . . 2 2 . 2 . . . . . . . Cannons 65 | . 2 . 5 . . . 3 . . . . 7 2 . 2 1 4 . 4 4 . . . 4 7 . 3 . 1 14 2 . . . AOE 40 | . . . . . . . . 3 . . . . . 2 . . 10 3 . 2 4 2 2 3 1 . 2 . . . 1 . 5 . Classes Destroyed 16 | . 5 . 1 . . . . 3 . . . . 1 . 1 . 1 1 1 . . . . . . . 1 . . 1 . . . . Worker 14 | . 1 . . . . . . 6 . . . . . . . . 5 1 . 1 . . . . . . . . . . . . . . Builder 2 | . . . . . . . . 1 . . . . . 1 . . . . . . . . . . . . . . . . . . . . Hauler 8 | . 2 . 1 . . . 1 . . . . . . . . . 2 . . . . . . . . . . . . 1 . . 1 . Recycler 9 | . . . . . . . . 1 . . . . 1 . . . 1 . . 1 . . . . 2 . . . . 3 . . . . Carrier 1 | . . . . . . . . . . . . . . . 1 . . . . . . . . . . . . . . . . . . . Minesweeper 1 | . . . . . . . . . . . . . . . . . . . . . . . . . . . 1 . . . . . . . Mechanic 1 | . . . . . . . . . . . . . . . . . . . . . . . . . . . . . . 1 . . . . Watcher 14 | . 1 . 2 . . . . 1 . . . . . . . . 2 2 . 1 . . . . 1 . . . . 3 1 . . . Swarmer 44 | . 5 . 4 . . . . 3 . 8 . 3 . . . . . . . . 4 . . 8 . . 4 . . . . . 5 . Saboteur 3 | . . . . . . . . . . . . . . . . . 1 . . . . . 2 . . . . . . . . . . . Grunt 56 | . 3 2 3 . . . 4 3 . . . 4 . 2 1 . 16 4 . 3 . . . . . . 6 . . 5 . . . . Duelist 4 | . . . . . . . . 1 . . . . . . . . 3 . . . . . . . . . . . . . . . . . Sentry 28 | . . . 2 . . . 1 2 . . . . 1 1 . 1 5 . . 3 . . . . 3 . . . . 2 5 . 1 1 Hunter 15 | . . . . . . . . . . . . . . . . . . 1 . . . 2 . . 2 . 2 . . 8 . . . . Programmer 29 | . . . . . . . . . . . . . 1 . . . 1 6 . 3 . . . 1 7 1 . . 1 5 2 . . 1 Compactor 4 | . . . . . . . . . . . . . . . . . . . 4 . . . . . . . . . . . . . . . Cetus Guard 1 | . . . . . . . . . . . . . . . 1 . . . . . . . . . . . . . . . . . . . Enhanced Grunt 1 | . . . . . . . . . . . . . . . . 1 . . . . . . . . . . . . . . . . . . Best Kill Streak 14 | . 3 2 6 . . . 3 9 . 4 . 3 1 2 2 1 14 5 2 3 4 2 2 4 2 1 4 . 1 9 3 . 6 1 Combat Bots Only 13 | . 3 2 4 . . . 3 4 . 4 . 3 1 2 1 1 13 3 2 3 4 2 2 4 2 1 3 . 1 8 3 . 5 1 Max Kills in Single Turn 9 | . 2 1 2 . . . 1 9 . 2 . 1 1 2 2 1 5 2 1 1 2 1 1 2 1 1 1 . 1 1 1 . 2 1 Gunslinging 1 | . 1 . 1 . . . . . . 1 . . . . . . . . . . . . . . . . . . . . . . . . Exploded 4 | . . . . . . . . 3 . . . . . 2 . . 4 1 . 1 2 1 1 2 1 . 1 . . . 1 . 2 . Melee 1 | . . . . . . . . . . . . . . . . . 1 1 . 1 . . . . 1 1 1 . . . 1 . . 1 Uniques/NPCs Destroyed 1 | . . . . . . . . . . . . . . . 1 . . . . . . . . . . . . . . . . . . . A7 (-6/Cetus) Combat | -11 -10 -10 -9 -9 -9 -8 -8 -7 -7 -7 -7 -6 -6 -6 -6 -6 -6 -5 -5 -5 -5 -5 -5 -4 -4 -4 -4 -4 -3 -3 -3 -3 -2 -1 -------- Run | Scr Mat Min Mat Min Exi Min Mat Fac Low Low Zio Pro Fac Ext Cet Arc Hub Fac Was Fac Upp Upp War Pro Fac Upp Upp Zhi Pro Res Arm Lab Res Acc Damage Taken 13562 | . 446 51 415 . . . 232 759 . 534 . 1151 78 222 233 69 954 727 . 169 54 16 627 754 845 61 1297 . 105 1994 1407 . 100 262 Core 2340 | . 145 . 96 . . . 16 152 . 146 . 154 5 63 81 45 147 130 . 12 14 . 187 125 120 21 230 . 28 221 117 . 35 50 Absorbed by Shields 1772 | . . . . . . . . . . . . . 21 167 69 . 556 241 . . . . . . . . . . . 115 499 . 37 67 Core Remaining (%) 71 | 100 . 42 . . . 76 97 . . . . 35 . . . . 59 . . . . . . 53 . . . . 65 . . 67 97 96 Volleys Fired 686 | . 48 4 39 . . . 19 34 . 15 1 30 10 27 13 5 47 29 19 29 2 2 4 35 71 . 40 . 10 104 35 . 9 5 Largest 2 | . 2 2 2 . . . 2 2 . 2 2 2 1 1 2 2 2 2 2 2 1 1 1 2 2 . 1 . 1 2 1 . 1 1 Hottest 301 | . 100 46 98 . . . 120 80 . 51 124 124 53 60 114 114 114 70 122 122 46 46 240 301 127 . 66 . 66 122 120 . 88 88 Shots Fired 924 | . 78 8 52 . . . 30 43 . 30 2 54 10 27 26 10 88 43 38 33 2 2 4 46 79 . 40 . 10 119 35 1 9 5 Gun 362 | . 63 8 25 . . . 19 42 . 30 1 5 . 5 . . 43 39 . 4 . . 1 19 41 . 16 . . . . 1 . . Cannon 484 | . 15 . 27 . . . 11 . . . 1 49 10 21 26 10 41 . 38 23 . . . 23 34 . 6 . 10 112 17 . 5 5 Launcher 69 | . . . . . . . . 1 . . . . . 1 . . 4 4 . 6 2 2 3 4 4 . 18 . . 7 9 . 4 . Special 9 | . . . . . . . . . . . . . . . . . . . . . . . . . . . . . . . 9 . . . Kinetic 580 | . 25 8 25 . . . 10 21 . 30 1 49 10 21 26 10 84 39 38 27 . . . 23 34 . 6 . 10 83 . . . . Thermal 180 | . 53 . 27 . . . 11 12 . . 1 5 . . . . . . . . . . 1 19 34 . . . . . 17 . . . Explosive 29 | . . . . . . . . 1 . . . . . 1 . . 4 4 . . 2 2 3 . . . 8 . . . . . 4 . Electromagnetic 126 | . . . . . . . 9 9 . . . . . 5 . . . . . 6 . . . 4 11 . 26 . . 36 9 1 5 5 Robot Hit Streak 14 | . 7 4 7 . . . 5 9 . 4 2 10 5 10 2 3 14 6 6 9 . 5 8 9 11 . 5 . 4 8 7 . 5 5 Robot Miss Streak 8 | . 3 2 5 . . . 2 7 . 4 3 8 2 2 4 5 6 4 4 2 . . . 7 2 . 5 . 2 5 1 . 1 . Penetration Max 1 | . . . . . . . . . . . . . . . 1 . 1 . 1 . . . . . 1 . . . . . . . . . Secondary Targets 6 | . 1 . 2 . . . . . . 3 . . . . . . . . . . . . . . . . . . . . . . . . Max Gunslinging Chain 1 | . 1 . 1 . . . . . . 1 . . . . . . . . . . . . . . . . . . . . . . . . Capacitor 19 | . . . . . . . . . . . . . . . . . . . . . . . . . 7 . 12 . . . . . . . Autonomous 22 | . . . . . . . . . . . . . . . . . 22 . . . . . . . . . . . . . . . . . Shots Hit Robots 632 | . 50 4 33 . . . 22 35 . 22 2 41 8 8 15 4 69 36 22 28 2 2 3 14 49 5 23 1 7 82 29 . 5 11 Core Hits 444 | . 18 3 13 . . . 12 40 . 22 3 25 4 18 7 3 88 23 7 18 5 5 3 11 21 2 24 1 3 40 13 . 10 2 Critical Hits 121 | . . . 1 . . . . . . . . . 1 . 6 3 15 5 18 7 . . . 5 20 . 4 . 3 30 3 . . . Critical Kills 47 | . . . . . . . . . . . . . 1 . 3 2 4 1 4 4 . . . 4 8 . 3 . . 12 1 . . . Critical Parts Destroyed 59 | . . . . . . . . . . . . . . . 3 1 11 4 2 3 . . . 1 11 . 1 . 3 18 1 . . . Melee Attacks 323 | . . . . . . . . . . . . . 2 7 5 . 31 42 . 57 4 . 9 . 35 16 5 1 9 47 28 3 7 15 Impact . | . . . . . . . . . . . . . . . . . . . . . . . . . . . . . . . . . . . Slashing 213 | . . . . . . . . . . . . . 2 7 5 . 31 2 . . . . . . 35 16 5 1 9 47 28 3 7 15 Piercing 110 | . . . . . . . . . . . . . . . . . . 40 . 57 4 . 9 . . . . . . . . . . . Sneak Attacks 14 | . . . . . . . . . . . . . 1 . 5 . . . . 3 . . . . 2 . . . . 3 . . . . Combat Hostiles 1 | . . . . . . . . . . . . . . . . . . . . . . . . . 1 . . . . . . . . . Follow-up Attacks . | . . . . . . . . . . . . . . . . . . . . . . . . . . . . . . . . . . . Damage Inflicted 25194 | . 756 62 740 . . . 417 1820 . 310 39 785 382 537 609 85 4589 1604 454 1240 786 234 234 564 1473 182 1691 109 175 2836 1042 . 913 526 Guns 4561 | . 555 62 190 . . . 217 681 . 310 23 23 . 95 . . 753 531 . 28 . . . 242 521 . 330 . . . . . . . Cannons 6993 | . 201 . 550 . . . 200 . . . 16 762 220 60 210 85 520 . 454 176 . . . 116 443 . 66 . 130 1845 592 . 160 187 Explosions 8825 | . . . . . . . . 1139 . . . . . 343 . . 2598 511 . 442 520 234 234 206 69 . 1185 . . 301 290 . 753 . Melee 4815 | . . . . . . . . . . . . . 162 39 399 . 718 562 . 594 266 . . . 440 182 110 109 45 690 160 . . 339 Ramming . | . . . . . . . . . . . . . . . . . . . . . . . . . . . . . . . . . . . Kinetic 6778 | . 280 62 190 . . . 116 283 . 310 16 762 220 60 210 85 1273 531 454 204 . . . 116 443 . 66 . 130 967 . . . . Thermal 3899 | . 476 . 550 . . . 200 1119 . . 23 23 . . . . . . . 70 . . . 333 407 . 106 . . . 592 . . . Explosive 5208 | . . . . . . . . 293 . . . . . 343 . . 1690 511 . . 520 234 234 . . . 573 . . . 57 . 753 . Electromagnetic 4494 | . . . . . . . 101 125 . . . . . 95 . . 908 . . 372 . . . 115 183 . 836 . . 1179 233 . 160 187 Impact . | . . . . . . . . . . . . . . . . . . . . . . . . . . . . . . . . . . . Slashing 3393 | . . . . . . . . . . . . . 162 39 399 . 718 . . . . . . . 440 182 110 109 45 690 160 . . 339 Piercing 1422 | . . . . . . . . . . . . . . . . . . 562 . 594 266 . . . . . . . . . . . . . Highest Corruption 11 | . . . . . . . . 1 1 1 1 . 1 6 3 . . 4 11 11 . . . . 1 . . . . . 10 8 . . Average Corruption 3 | . . . . . . . . 1 1 1 1 . 1 5 1 . . 2 6 5 . . . . 1 . . . . . 8 6 . . Corruption Purged 29 | . . . . . . . . . . . . . . 3 3 . . 6 . 12 . . . . 1 . . . . . 2 2 . . Effects 108 | . . . . . . . . 2 . 1 . . 1 26 5 . . 14 6 22 . . . . 3 . . . . . 21 7 . . Message Errors 17 | . . . . . . . . 1 . 1 . . . 1 1 . . 2 . 5 . . . . 1 . . . . . 3 2 . . Matter Fused 21 | . . . . . . . . . . . . . . 4 1 . . . 3 3 . . . . . . . . . . 8 2 . . Heat Flow Errors 13 | . . . . . . . . . . . . . . 5 . . . 5 . 1 . . . . . . . . . . 2 . . . Energy Discharges 18 | . . . . . . . . . . . . . . 6 . . . 3 . 7 . . . . . . . . . . 2 . . . Data Loss (minor) 15 | . . . . . . . . . . . . . 1 2 1 . . 1 . 3 . . . . 1 . . . . . 4 2 . . Data Loss (major) 1 | . . . . . . . . . . . . . . . . . . . . 1 . . . . . . . . . . . . . . Misfires 3 | . . . . . . . . . . . . . . 2 . . . . . . . . . . . . . . . . . 1 . . Misdirections 3 | . . . . . . . . . . . . . . . . . . . 2 1 . . . . . . . . . . . . . . Targeting Errors 14 | . . . . . . . . . . . . . . 4 2 . . 3 1 1 . . . . 1 . . . . . 2 . . . Weapon Failures 3 | . . . . . . . . 1 . . . . . 2 . . . . . . . . . . . . . . . . . . . . Overload Shots 3 | . . . . . . . . . . . . . . . . . . . . . . . 1 2 . . . . . . . . . . Overflow Damage 829 | . . . 10 . . . . 189 . . . 5 57 . 57 . 88 4 . 44 168 7 18 11 8 . 57 . . 18 40 . 31 17 Projectiles 66 | . . . 10 . . . . . . . . 5 6 . . . . . . . . . . . . . . . . . 40 . . 5 Explosions 473 | . . . . . . . . 189 . . . . . . . . 59 4 . 24 55 7 18 11 . . 57 . . 18 . . 31 . Melee 290 | . . . . . . . . . . . . . 51 . 57 . 29 . . 20 113 . . . 8 . . . . . . . . 12 Knockbacks 54 | . 6 . . . . . . . . . . 9 2 1 2 . 5 . . 2 . . . 1 4 . . . 3 19 . . . . Impact . | . . . . . . . . . . . . . . . . . . . . . . . . . . . . . . . . . . . Kinetic 53 | . 6 . . . . . . . . . . 9 2 1 2 . 5 . . 2 . . . 1 4 . . . 3 18 . . . . Secondary 1 | . . . . . . . . . . . . . . . . . . . . . . . . . . . . . . 1 . . . . Self-Inflicted Damage 547 | . . . . . . . . 83 . . . . . . . . 88 . . . . . 177 39 30 . 123 . . 7 . . . . Shots 18 | . . . . . . . . 2 . . . . . . . . 1 . . . . . 3 2 1 . 7 . . 2 . . . . Rammed . | . . . . . . . . . . . . . . . . . . . . . . . . . . . . . . . . . . . Targets Rammed . | . . . . . . . . . . . . . . . . . . . . . . . . . . . . . . . . . . . Kicked . | . . . . . . . . . . . . . . . . . . . . . . . . . . . . . . . . . . . Crushed . | . . . . . . . . . . . . . . . . . . . . . . . . . . . . . . . . . . . Highest Temperature 328 | . 183 21 270 . . . 284 101 . . . 32 15 289 96 . 1 253 216 168 . . 192 198 228 . 169 . 276 229 328 4 124 80 Average Temperature 77 | . 41 10 114 . . . 139 30 . . . 6 9 73 55 . 1 92 117 57 . . 68 92 66 . 47 . 129 75 118 3 46 36 Received Heat Transfer 2508 | . 180 27 138 . . . 126 123 . . . 399 5 58 36 18 384 45 . 81 . . 66 . 99 . 81 . 9 422 177 . 4 30 Effects 4 | . . . . . . . 1 . . . . . . . . . . . . . . . . . . . . . . 3 . . . . Interference 4 | . . . . . . . 1 . . . . . . . . . . . . . . . . . . . . . . 3 . . . . Siege Activations . | . . . . . . . . . . . . . . . . . . . . . . . . . . . . . . . . . . . Robots Corrupted 18 | . . . . . . . . . . . . . . . . . 3 . . 1 . . . . 1 . 4 . . 6 1 . 1 1 Combat Hostiles 16 | . . . . . . . . . . . . . . . . . 1 . . 1 . . . . 1 . 4 . . 6 1 . 1 1 Parts Fried 35 | . . . . . . . 1 2 . . . . . 1 . . 3 . . 3 . . . . 2 . 9 . . 11 2 . . 1 Impact Corruptions . | . . . . . . . . . . . . . . . . . . . . . . . . . . . . . . . . . . . Robots Melted . | . . . . . . . . . . . . . . . . . . . . . . . . . . . . . . . . . . . Combat Hostiles . | . . . . . . . . . . . . . . . . . . . . . . . . . . . . . . . . . . . Parts Melted 8 | . 2 . 1 . . . 1 . . . . . . . . . . 1 . . . . . . 1 . . . . . 2 . . . Heat Transferred 5164 | . 1406 . 814 . . . 296 1225 . . 50 50 . . . . . . . . . . . 335 407 . 100 . . . 481 . . . Parts Sabotaged . | . . . . . . . . . . . . . . . . . . . . . . . . . . . . . . . . . . . Parts Stolen . | . . . . . . . . . . . . . . . . . . . . . . . . . . . . . . . . . . . Parts Stripped . | . . . . . . . . . . . . . . . . . . . . . . . . . . . . . . . . . . . Power Chain Reactions 4 | . . . . . . . . . . . . . . . . . . . . 1 . . . 2 . . 1 . . . . . . . Missiles Intercepted . | . . . . . . . . . . . . . . . . . . . . . . . . . . . . . . . . . . . Alert | -11 -10 -10 -9 -9 -9 -8 -8 -7 -7 -7 -7 -6 -6 -6 -6 -6 -6 -5 -5 -5 -5 -5 -5 -4 -4 -4 -4 -4 -3 -3 -3 -3 -2 -1 ------- Run | Scr Mat Min Mat Min Exi Min Mat Fac Low Low Zio Pro Fac Ext Cet Arc Hub Fac Was Fac Upp Upp War Pro Fac Upp Upp Zhi Pro Res Arm Lab Res Acc Peak Influence 862 | . 124 65 295 39 . . 189 324 . . . . 80 201 365 248 862 572 84 475 . . . . 520 . . . . 253 242 . 288 331 Average Influence 171 | . 50 49 155 39 . . 65 100 . . . . 35 42 197 177 425 323 84 131 . . . . 250 . . . . 104 107 . 223 234 Maximum Alert Level 3 | . . . 1 . . . . 1 . . . . . 1 1 1 3 2 . 2 . . . . 2 . . . . 1 1 . 1 1 Low Security (%) 67 | 100 100 100 55 100 . 100 100 98 . . . . 100 99 50 46 5 24 100 79 . . . . 47 . . . . 90 89 . 8 46 Level 1 18 | . . . 44 . . . . 1 . . . . . . 50 53 31 37 . . . . . . 33 . . . . 9 10 . 91 53 Level 2 13 | . . . . . . . . . . . . . . . . . 59 38 . 20 . . . . 19 . . . . . . . . . Level 3 . | . . . . . . . . . . . . . . . . . 3 . . . . . . . . . . . . . . . . . Level 4 . | . . . . . . . . . . . . . . . . . . . . . . . . . . . . . . . . . . . Level 5 . | . . . . . . . . . . . . . . . . . . . . . . . . . . . . . . . . . . . High Security . | . . . . . . . . . . . . . . . . . . . . . . . . . . . . . . . . . . . Max Security . | . . . . . . . . . . . . . . . . . . . . . . . . . . . . . . . . . . . Squads Dispatched 42 | . . 1 . . . . 2 . . . . . 2 1 . . 9 5 . 5 . . . . 4 . . . . 6 2 . 1 4 Investigation 11 | . . 1 . . . . 2 . . . . . 1 . . . 2 1 . 1 . . . . 1 . . . . 1 1 . . . Extermination 14 | . . . . . . . . . . . . . 1 . . . 1 3 . 2 . . . . 3 . . . . 3 1 . . . Reinforcement 12 | . . . . . . . . . . . . . . 1 . . 4 1 . 2 . . . . . . . . . 2 . . 1 1 Assault 1 | . . . . . . . . . . . . . . . . . 1 . . . . . . . . . . . . . . . . . Garrison 4 | . . . . . . . . . . . . . . . . . 1 . . . . . . . . . . . . . . . . 3 Intercept . | . . . . . . . . . . . . . . . . . . . . . . . . . . . . . . . . . . . Construction Impeded 3 | . . . . . . . . . . . . . . 1 . . 1 . . . . . . . . . . . . 1 . . . . Haulers Reinforced 2 | . . . . . . . . . . . . . . . . . 1 . . . . . . . . . . . . 1 . . . . Stealth | -11 -10 -10 -9 -9 -9 -8 -8 -7 -7 -7 -7 -6 -6 -6 -6 -6 -6 -5 -5 -5 -5 -5 -5 -4 -4 -4 -4 -4 -3 -3 -3 -3 -2 -1 --------- Run | Scr Mat Min Mat Min Exi Min Mat Fac Low Low Zio Pro Fac Ext Cet Arc Hub Fac Was Fac Upp Upp War Pro Fac Upp Upp Zhi Pro Res Arm Lab Res Acc Distress Signals 25 | . . . 2 . . . . 1 . . . . . 1 2 . 2 1 . 1 . . . . 1 . . . . 2 . . 10 2 Communications Jammed 92 | . . . . . . . . . . . . . . . . . . . . . . . . . 3 . . . . 53 18 . . 18 Distress Signals 92 | . . . . . . . . . . . . . . . . . . . . . . . . . 3 . . . . 53 18 . . 18 Times Spotted 331 | . 12 2 19 . . . 6 16 . 8 . 13 4 9 14 4 43 19 4 16 2 1 20 10 24 1 16 . 2 40 12 . 4 10 Peak Tracking Total 17 | . 5 2 4 . . . 3 6 . 4 . 4 1 4 5 1 10 4 2 3 4 2 17 5 5 1 5 . 1 7 4 . 3 3 Tactical Retreats 26 | . 1 . 1 . . . . 2 . . . 4 . . . . 4 . . 2 . . 1 1 1 . 3 . . 5 . . . 1 Traps | -11 -10 -10 -9 -9 -9 -8 -8 -7 -7 -7 -7 -6 -6 -6 -6 -6 -6 -5 -5 -5 -5 -5 -5 -4 -4 -4 -4 -4 -3 -3 -3 -3 -2 -1 ------- Run | Scr Mat Min Mat Min Exi Min Mat Fac Low Low Zio Pro Fac Ext Cet Arc Hub Fac Was Fac Upp Upp War Pro Fac Upp Upp Zhi Pro Res Arm Lab Res Acc Traps Triggered 15 | . . . . . . . 1 3 . . . . 1 1 . . 3 4 . 1 . . . . . . . . . 1 . . . . Indirectly 1 | . . . . . . . . . . . . . . . . . 1 . . . . . . . . . . . . . . . . . Trap Hack Attempts . | . . . . . . . . . . . . . . . . . . . . . . . . . . . . . . . . . . . Triggered . | . . . . . . . . . . . . . . . . . . . . . . . . . . . . . . . . . . . Disarmed . | . . . . . . . . . . . . . . . . . . . . . . . . . . . . . . . . . . . Reprogrammed . | . . . . . . . . . . . . . . . . . . . . . . . . . . . . . . . . . . . Reused . | . . . . . . . . . . . . . . . . . . . . . . . . . . . . . . . . . . . Traps Extracted . | . . . . . . . . . . . . . . . . . . . . . . . . . . . . . . . . . . . Installed . | . . . . . . . . . . . . . . . . . . . . . . . . . . . . . . . . . . . Triggered 14 | . . . . . . . . . 1 . . . . . . . . . . . 2 . 10 . . . . . . . . . . 1 Exploded 1 | . . . . . 1 . . . . . . . . . . . . . . . . . . . . . . . . . . . . . Machines | -11 -10 -10 -9 -9 -9 -8 -8 -7 -7 -7 -7 -6 -6 -6 -6 -6 -6 -5 -5 -5 -5 -5 -5 -4 -4 -4 -4 -4 -3 -3 -3 -3 -2 -1 ---------- Run | Scr Mat Min Mat Min Exi Min Mat Fac Low Low Zio Pro Fac Ext Cet Arc Hub Fac Was Fac Upp Upp War Pro Fac Upp Upp Zhi Pro Res Arm Lab Res Acc Machines Disabled 36 | . . . . . . . . 5 . . . . 1 2 . 1 12 5 . 2 . . 1 . 1 . . . 1 . 3 1 1 . Max in Single Turn 8 | . . . . . . . . 5 . . . . 1 1 . 1 8 1 . 1 . . 1 . 1 . . . 1 . 2 1 1 . Garrison Access 10 | . . . . . . . . . . . . . . . . . 2 . . 2 . . . . 3 . . . . 2 . . 1 . Network Hub 1 | . . . . . . . . . . . . . . . . . 1 . . . . . . . . . . . . . . . . . Energy Cycler 2 | . . . . . . . . . . . . . . 2 . . . . . . . . . . . . . . . . . . . . Machines Sabotaged . | . . . . . . . . . . . . . . . . . . . . . . . . . . . . . . . . . . . Garrisons Compromised . | . . . . . . . . . . . . . . . . . . . . . . . . . . . . . . . . . . . Overloaded Fab Kills . | . . . . . . . . . . . . . . . . . . . . . . . . . . . . . . . . . . . Fab Network Shutdowns 2 | . . . . . . . . . . . . . . . . . . . . 1 . . . . 1 . . . . . . . . . Hacking | -11 -10 -10 -9 -9 -9 -8 -8 -7 -7 -7 -7 -6 -6 -6 -6 -6 -6 -5 -5 -5 -5 -5 -5 -4 -4 -4 -4 -4 -3 -3 -3 -3 -2 -1 --------- Run | Scr Mat Min Mat Min Exi Min Mat Fac Low Low Zio Pro Fac Ext Cet Arc Hub Fac Was Fac Upp Upp War Pro Fac Upp Upp Zhi Pro Res Arm Lab Res Acc Machines Accessed 109 | . 3 1 2 . 1 . 2 2 . 1 . . 5 11 3 . 8 6 . 15 . . 4 . 14 1 . 4 . 13 9 . . 4 Terminals 63 | . 3 . 1 . . . 1 2 . . . . 4 11 3 . 6 4 . 9 . . . . 5 . . . . 6 6 . . 2 Fabricators 7 | . . . . . . . . . . . . . . . . . . 1 . 2 . . . . 2 . . . . 1 1 . . . Repair Stations 12 | . . . 1 . . . 1 . . . . . 1 . . . . . . 1 . . . . 2 . . . . 3 2 . . 1 Recycling Units . | . . . . . . . . . . . . . . . . . . . . . . . . . . . . . . . . . . . Scanalyzers 6 | . . . . . . . . . . . . . . . . . . 1 . 1 . . . . 2 . . . . 1 . . . 1 Garrison Access 9 | . . . . . . . . . . . . . . . . . 2 . . 2 . . . . 3 . . . . 2 . . . . Total Hacks 425 | . 8 1 5 . 1 . 9 7 . 1 . . 21 41 8 . 23 41 . 60 . . 4 . 63 1 . 17 . 57 38 . . 19 Successful 251 | . 2 1 3 . 1 . 6 4 . 1 . . 8 22 5 . 13 27 . 32 . . 4 . 37 1 . 17 . 29 28 . . 10 Failed 170 | . 6 . 2 . . . 3 3 . . . . 12 19 3 . 10 13 . 27 . . . . 26 . . . . 28 9 . . 9 Catastrophic 27 | . 2 . . . . . 1 1 . . . . 1 1 2 . . 2 . 6 . . . . 6 . . . . 4 1 . . . Database Lockouts 4 | . . . . . . . . . . . . . 1 . . . . 1 . 1 . . . . . . . . . . 1 . . . Manual 172 | . 5 . 2 . 1 . 6 2 . . . . 12 25 8 . 13 21 . 30 . . 1 . 14 . . . 1 19 11 . . 1 Terminals 274 | . 8 . 2 . . . 7 7 . . . . 19 41 8 . 20 28 . 39 . . . . 26 . . . . 34 27 . . 8 Fabricators 27 | . . . . . . . . . . . . . . . . . . 4 . 10 . . . . 7 . . . . 3 3 . . . Repair Stations 61 | . . . 3 . . . 2 . . . . . 2 . . . . . . 4 . . . . 19 . . . . 15 8 . . 8 Recycling Units . | . . . . . . . . . . . . . . . . . . . . . . . . . . . . . . . . . . . Scanalyzers 21 | . . . . . . . . . . . . . . . . . . 9 . 2 . . . . 5 . . . . 2 . . . 3 Garrison Access 17 | . . . . . . . . . . . . . . . . . 3 . . 5 . . . . 6 . . . . 3 . . . . Terminal Hacks 129 | . 1 1 1 . 1 . 3 4 . 1 . . 6 16 4 . 8 9 . 12 . . 4 . 8 1 . 17 . 11 19 . . 2 Record 7 | . . . . . . . . . . . . . . . . . . . . . . . 2 . . . . 5 . . . . . . Part Schematic 11 | . . . . . . . 1 . . . . . 1 . . . . 1 . 2 . . . . . . . 4 . 1 1 . . . Robot Analysis 7 | . . . . . . . . . . . . . . 2 . . . . . . . . . . . . . 4 . . 1 . . . Prototype ID Bank 10 | . . . . . . . . . . . . . . 2 . . . . . 1 . . . . 2 . . 4 . 1 . . . . Open Door 12 | . . 1 . . . . . . . 1 . . 1 3 1 . . . . . . . 2 . . 1 . . . . 1 . . 1 Level Access Points 2 | . 1 . . . . . . . . . . . . . . . . . . . . . . . . . . . . 1 . . . . Branch Access Points 8 | . . . 1 . . . 1 1 . . . . 1 . . . . . . 1 . . . . 1 . . . . 1 . . . 1 Emergency Access Points 2 | . . . . . . . . . . . . . . . . . . . . . . . . . . . . . . . 2 . . . Machine Index 1 | . . . . . . . . . . . . . . . . . . . . . . . . . . . . . . 1 . . . . Terminal Index 3 | . . . . . . . . . . . . . . . . . 1 . . 1 . . . . . . . . . . 1 . . . Fabricator Index 3 | . . . . . . . . . . . . . . . . . . 1 . 1 . . . . . . . . . . 1 . . . Alert Level 11 | . . . . . . . . . . . . . 1 2 1 . 2 1 . 2 . . . . . . . . . . 2 . . . Unreport Threat 17 | . . . . . . . . 2 . . . . 1 1 2 . 3 2 . 1 . . . . . . . . . 3 2 . . . Locate Traps 14 | . . . . . . . . 1 . . . . . 1 . . 1 2 . 2 . . . . 3 . . . . 1 3 . . . Dispatch Records 2 | . . . . . . . . . . . . . . 1 . . . . . . . . . . . . . . . . 1 . . . Surveillance Status 1 | . . . . . . . . . . . . . . 1 . . . . . . . . . . . . . . . . . . . . Recall Investigation 4 | . . . . . . . . . . . . . . . . . . 1 . 1 . . . . 1 . . . . . 1 . . . Recall Extermination 3 | . . . . . . . . . . . . . . . . . . 1 . . . . . . . . . . . 1 1 . . . Recall Reinforcements 2 | . . . . . . . . . . . . . . 1 . . 1 . . . . . . . . . . . . . . . . . Hauler Manifests 3 | . . . . . . . . . . . . . . . . . . . . . . . . . 1 . . . . 1 1 . . . Registered Prototypes 1 | . . . . . . . . . . . . . . . . . . . . . . . . . . . . . . . 1 . . . Zone Layout 4 | . . . . . . . 1 . . . . . 1 2 . . . . . . . . . . . . . . . . . . . . EX-Prototype ID Bank 1 | . . . . . 1 . . . . . . . . . . . . . . . . . . . . . . . . . . . . . Fabricator Hacks 21 | . . . . . . . . . . . . . . . . . . 4 . 7 . . . . 5 . . . . 3 2 . . . Load Schematic 10 | . . . . . . . . . . . . . . . . . . 2 . 4 . . . . 2 . . . . 1 1 . . . Build 11 | . . . . . . . . . . . . . . . . . . 2 . 3 . . . . 3 . . . . 2 1 . . . Repair Station Hacks 41 | . . . 2 . . . 2 . . . . . 2 . . . . . . 4 . . . . 12 . . . . 10 4 . . 5 Scan Component 21 | . . . 1 . . . 1 . . . . . 1 . . . . . . 2 . . . . 6 . . . . 5 2 . . 3 Repair 20 | . . . 1 . . . 1 . . . . . 1 . . . . . . 2 . . . . 6 . . . . 5 2 . . 2 Recycling Unit Hacks . | . . . . . . . . . . . . . . . . . . . . . . . . . . . . . . . . . . . Scanalyzer 18 | . . . . . . . . . . . . . . . . . . 8 . 2 . . . . 4 . . . . 2 . . . 2 Insert Component 12 | . . . . . . . . . . . . . . . . . . 5 . 1 . . . . 2 . . . . 2 . . . 2 Analyze 6 | . . . . . . . . . . . . . . . . . . 3 . 1 . . . . 2 . . . . . . . . . Garrison Access Hacks 9 | . . . . . . . . . . . . . . . . . 2 . . 2 . . . . 3 . . . . 2 . . . . Seal Access 9 | . . . . . . . . . . . . . . . . . 2 . . 2 . . . . 3 . . . . 2 . . . . Unauthorized Hacks 97 | . 3 . . . . . 4 . . . . . 2 18 3 . 9 15 . 19 . . . . 11 . . . . 5 6 . . 2 Terminals 30 | . 1 . . . . . 1 . . . . . . 6 1 . 3 6 . 4 . . . . 3 . . . . 1 3 . . 1 Track 2 | . . . . . . . . . . . . . . . . . 1 1 . . . . . . . . . . . . . . . . Assimilate 6 | . 1 . . . . . . . . . . . . . . . . 2 . 1 . . . . . . . . . . 2 . . . Botnet 17 | . . . . . . . 1 . . . . . . 3 1 . 2 1 . 3 . . . . 3 . . . . 1 1 . . 1 Disrupt 3 | . . . . . . . . . . . . . . 2 . . . 1 . . . . . . . . . . . . . . . . Operators 2 | . . . . . . . . . . . . . . 1 . . . 1 . . . . . . . . . . . . . . . . Fabricators 3 | . . . . . . . . . . . . . . . . . . . . 1 . . . . 2 . . . . . . . . . Siphon 3 | . . . . . . . . . . . . . . . . . . . . 1 . . . . 2 . . . . . . . . . Repair Stations . | . . . . . . . . . . . . . . . . . . . . . . . . . . . . . . . . . . . Recycling Units . | . . . . . . . . . . . . . . . . . . . . . . . . . . . . . . . . . . . Scanalyzers . | . . . . . . . . . . . . . . . . . . . . . . . . . . . . . . . . . . . Garrison Access . | . . . . . . . . . . . . . . . . . . . . . . . . . . . . . . . . . . . Data Cores Recovered . | . . . . . . . . . . . . . . . . . . . . . . . . . . . . . . . . . . . Used . | . . . . . . . . . . . . . . . . . . . . . . . . . . . . . . . . . . . Hacking Detections 74 | . 3 . 1 . . . 1 2 . . . . 4 9 3 . 6 6 . 11 . . . . 8 . . . . 9 7 . . 4 Full Trace Events 3 | . 1 . . . . . 1 . . . . . . . . . . . . . . . . . 1 . . . . . . . . . Feedback Events . | . . . . . . . . . . . . . . . . . . . . . . . . . . . . . . . . . . . Feedback Blocked . | . . . . . . . . . . . . . . . . . . . . . . . . . . . . . . . . . . . Robot Schematics Acquired . | . . . . . . . . . . . . . . . . . . . . . . . . . . . . . . . . . . . Robots Built . | . . . . . . . . . . . . . . . . . . . . . . . . . . . . . . . . . . . Matter . | . . . . . . . . . . . . . . . . . . . . . . . . . . . . . . . . . . . Time . | . . . . . . . . . . . . . . . . . . . . . . . . . . . . . . . . . . . Total Robot Build Rating . | . . . . . . . . . . . . . . . . . . . . . . . . . . . . . . . . . . . Part Schematics Acquired 16 | . . . . . . . 1 . . . . . 1 . . . . 4 . 3 . . . . 1 . . 4 . 1 1 . . . Parts Built 12 | . . . . . . . . . . . . . . . . . . 3 . 3 . . . . 3 . . . . 2 1 . . . Matter 2721 | . . . . . . . . . . . . . . . . . . 563 . 639 . . . . 689 . . . . 512 318 . . . Time 1380 | . . . . . . . . . . . . . . . . . . 293 . 456 . . . . 491 . . . . 84 56 . . . Total Part Build Rating 73 | . . . . . . . . . . . . . . . . . . 19 . 15 . . . . 17 . . . . 16 6 . . . Parts Repaired 20 | . . . 1 . . . 1 . . . . . 1 . . . . . . 2 . . . . 6 . . . . 5 2 . . 2 Time 759 | . . . 32 . . . 38 . . . . . 38 . . . . . . 134 . . . . 252 . . . . 146 48 . . 71 Parts Recycled . | . . . . . . . . . . . . . . . . . . . . . . . . . . . . . . . . . . . Recycled Matter . | . . . . . . . . . . . . . . . . . . . . . . . . . . . . . . . . . . . Retrieved Matter . | . . . . . . . . . . . . . . . . . . . . . . . . . . . . . . . . . . . Retrieved Components . | . . . . . . . . . . . . . . . . . . . . . . . . . . . . . . . . . . . Parts Scanalyzed 5 | . . . . . . . . . . . . . . . . . . 3 . 1 . . . . 1 . . . . . . . . . Part Schematics Acquired 5 | . . . . . . . . . . . . . . . . . . 3 . 1 . . . . 1 . . . . . . . . . Parts Damaged . | . . . . . . . . . . . . . . . . . . . . . . . . . . . . . . . . . . . Bothacking | -11 -10 -10 -9 -9 -9 -8 -8 -7 -7 -7 -7 -6 -6 -6 -6 -6 -6 -5 -5 -5 -5 -5 -5 -4 -4 -4 -4 -4 -3 -3 -3 -3 -2 -1 ------------ Run | Scr Mat Min Mat Min Exi Min Mat Fac Low Low Zio Pro Fac Ext Cet Arc Hub Fac Was Fac Upp Upp War Pro Fac Upp Upp Zhi Pro Res Arm Lab Res Acc Used RIF Installer . | . . . . . . . . . . . . . . . . . . . . . . . . . . . . . . . . . . . Robots Hacked . | . . . . . . . . . . . . . . . . . . . . . . . . . . . . . . . . . . . Non-combat . | . . . . . . . . . . . . . . . . . . . . . . . . . . . . . . . . . . . Combat . | . . . . . . . . . . . . . . . . . . . . . . . . . . . . . . . . . . . Robot Hacks Applied . | . . . . . . . . . . . . . . . . . . . . . . . . . . . . . . . . . . . Relay Couplers Released . | . . . . . . . . . . . . . . . . . . . . . . . . . . . . . . . . . . . Robots Rewired 9 | . . . . . . . . . . . . . . 6 . . . . . . . . . . . . . . . . 3 . . . Allies Hacked . | . . . . . . . . . . . . . . . . . . . . . . . . . . . . . . . . . . . Hacks Repelled . | . . . . . . . . . . . . . . . . . . . . . . . . . . . . . . . . . . . Allies | -11 -10 -10 -9 -9 -9 -8 -8 -7 -7 -7 -7 -6 -6 -6 -6 -6 -6 -5 -5 -5 -5 -5 -5 -4 -4 -4 -4 -4 -3 -3 -3 -3 -2 -1 -------- Run | Scr Mat Min Mat Min Exi Min Mat Fac Low Low Zio Pro Fac Ext Cet Arc Hub Fac Was Fac Upp Upp War Pro Fac Upp Upp Zhi Pro Res Arm Lab Res Acc Total Allies 22 | . 1 . . . . . . . . . . . . 10 5 . . 1 1 . . . . . . . . . . . 4 . . . Largest Group 8 | . 1 . . . . . . . . . . . . 8 8 5 3 2 1 1 . . . . . . . . . . 3 . . . Highest-Rated Group 626 | . 10 . . . . . . . . . . . . 351 626 470 282 188 31 31 . . . . . . . . . . 144 . . . Highest-Rated Ally 156 | . 10 . . . . . . . . . . . . 156 156 94 94 94 31 31 . . . . . . . . . . 48 . . . Total Orders 14 | . 8 . . . . . . . . . . . . . . . 5 . . . . . . . . . . . . . 1 . . . STAY 7 | . 2 . . . . . . . . . . . . . . . 4 . . . . . . . . . . . . . 1 . . . GOTO 3 | . 3 . . . . . . . . . . . . . . . . . . . . . . . . . . . . . . . . . FOLLOW 4 | . 3 . . . . . . . . . . . . . . . 1 . . . . . . . . . . . . . . . . . Ally Attacks 238 | . . . . . . . . . . . . . . 31 80 13 41 8 34 5 . . . . . . . . . . 26 . . . Total Damage 6618 | . . . . . . . . . . . . . . 770 2290 455 1356 327 583 66 . . . . . . . . . . 771 . . . Kills 47 | . . . . . . . . . . . . . . 7 20 3 11 2 1 . . . . . . . . . . . 3 . . . Allies Corrupted 1 | . . . . . . . . . . . . . . . . . . 1 . . . . . . . . . . . . . . . . Allies Melted 1 | . . . . . . . . . . . . . . . . . . . . . . . 1 . . . . . . . . . . . Intel | -11 -10 -10 -9 -9 -9 -8 -8 -7 -7 -7 -7 -6 -6 -6 -6 -6 -6 -5 -5 -5 -5 -5 -5 -4 -4 -4 -4 -4 -3 -3 -3 -3 -2 -1 ------- Run | Scr Mat Min Mat Min Exi Min Mat Fac Low Low Zio Pro Fac Ext Cet Arc Hub Fac Was Fac Upp Upp War Pro Fac Upp Upp Zhi Pro Res Arm Lab Res Acc Robot Analysis Total 7 | . . . . . . . . . . . . . . 2 . . . . . . . . . . . . . 4 . . 1 . . . Derelict Logs Recovered 6 | . . 1 . . . . . . . 1 2 . . . . . . . . . . 1 . . . . 1 . . . . . . . Drone Launches 2 | . . . . . . . . . . . . . . 2 . . . . . . . . . . . . . . . . . . . . Drone Recoveries . | . . . . . . . . . . . . . . . . . . . . . . . . . . . . . . . . . . . Exploration | -11 -10 -10 -9 -9 -9 -8 -8 -7 -7 -7 -7 -6 -6 -6 -6 -6 -6 -5 -5 -5 -5 -5 -5 -4 -4 -4 -4 -4 -3 -3 -3 -3 -2 -1 ------------- Run | Scr Mat Min Mat Min Exi Min Mat Fac Low Low Zio Pro Fac Ext Cet Arc Hub Fac Was Fac Upp Upp War Pro Fac Upp Upp Zhi Pro Res Arm Lab Res Acc Turns Passed 23754 | 80 660 481 442 301 323 136 372 620 245 437 1259 596 917 845 412 91 1173 1949 146 2531 191 191 545 297 2897 237 497 184 266 2239 1145 204 383 462 Spaces Moved 13878 | 39 417 302 190 200 215 89 187 440 246 331 1245 328 515 447 208 60 667 1073 78 1283 171 185 384 173 1268 152 232 168 209 1116 554 176 310 220 Core 13878 | 39 417 302 190 200 215 89 187 440 246 331 1245 328 515 447 208 60 667 1073 78 1283 171 185 384 173 1268 152 232 168 209 1116 554 176 310 220 Treads . | . . . . . . . . . . . . . . . . . . . . . . . . . . . . . . . . . . . Legs . | . . . . . . . . . . . . . . . . . . . . . . . . . . . . . . . . . . . Wheels . | . . . . . . . . . . . . . . . . . . . . . . . . . . . . . . . . . . . Hover . | . . . . . . . . . . . . . . . . . . . . . . . . . . . . . . . . . . . Flight . | . . . . . . . . . . . . . . . . . . . . . . . . . . . . . . . . . . . Fastest Speed 50 | 50 50 150 100 150 150 150 100 50 100 100 100 100 100 150 100 100 100 100 100 100 100 100 100 100 100 100 100 100 100 100 100 100 100 100 Average Speed 116 | 189 121 150 155 150 150 150 128 100 100 102 100 149 158 154 156 100 105 120 100 103 100 100 100 111 104 104 140 100 100 109 117 100 100 118 Slowest Speed 1950 | 250 150 150 350 150 150 150 150 150 100 200 100 150 200 200 200 100 200 200 100 450 100 100 100 1950 200 200 200 100 150 200 150 100 150 150 Overloaded Moves . | . . . . . . . . . . . . . . . . . . . . . . . . . . . . . . . . . . . Propulsion Burnouts . | . . . . . . . . . . . . . . . . . . . . . . . . . . . . . . . . . . . Robots Hopped . | . . . . . . . . . . . . . . . . . . . . . . . . . . . . . . . . . . . Cave-ins Triggered . | . . . . . . . . . . . . . . . . . . . . . . . . . . . . . . . . . . . Teleports 1 | . . . . . . . . . . . . . . . . . . . . . . . . . . . . . . . 1 . . . Exploration Rate (%) 44 | 4 71 76 24 50 60 26 21 15 47 47 84 54 16 71 76 74 58 23 74 34 41 35 64 31 33 31 43 60 42 31 38 93 14 7 Regions Visited 34 Branch Regions 22 Pre-discovered Areas 8 | . . 1 . . . . . . . 1 2 . . . . . . . . . . . 1 . . . . 3 . . . . . . Known Exits Taken 11 | . . 1 1 . . . . 1 . . . . 1 . . . . . . 1 . . . . 1 . . . 1 1 1 1 1 . Unknown Exits Taken 21 | 1 1 . . 1 1 1 1 . 1 1 1 1 . 1 1 1 1 . . . 1 1 1 1 . 1 1 1 . . . . . . Scrap Searched 9 | . . 1 . 1 . . . . . 3 1 . . . . . . . . . . 1 . . . . 1 . 1 . . . . . Spaces Dug 213 | . . . . . . . . . . . . . . 13 . . 5 17 . 42 2 . 8 3 35 7 1 . 7 34 23 . 7 9 Terrain Destroyed 802 | . . . 5 . . . 1 7 . . . 3 . 27 3 2 247 29 . 47 31 24 64 14 36 7 122 . 7 34 49 . 34 9 Melee 190 | . . . . . . . . . . . . . . 5 . . 5 17 . 42 2 . 8 . 23 7 1 . 7 34 23 . 7 9 Projectile 82 | . . . 5 . . . 1 . . . . 3 . 12 3 2 22 6 . 1 . . . 9 13 . 1 . . . 4 . . . AOE 530 | . . . . . . . . 7 . . . . . 10 . . 220 6 . 4 29 24 56 5 . . 120 . . . 22 . 27 . Actions | -11 -10 -10 -9 -9 -9 -8 -8 -7 -7 -7 -7 -6 -6 -6 -6 -6 -6 -5 -5 -5 -5 -5 -5 -4 -4 -4 -4 -4 -3 -3 -3 -3 -2 -1 --------- Run | Scr Mat Min Mat Min Exi Min Mat Fac Low Low Zio Pro Fac Ext Cet Arc Hub Fac Was Fac Upp Upp War Pro Fac Upp Upp Zhi Pro Res Arm Lab Res Acc Total 20094 | 44 495 325 290 201 217 92 288 571 245 401 1260 387 606 560 258 80 1007 1616 109 2360 184 188 528 232 2710 208 364 183 243 1941 949 201 358 393 Wait 4248 | . 5 13 53 . . 4 59 70 . 45 . 14 48 43 15 7 183 382 8 900 2 2 120 4 1221 23 47 . 3 561 263 1 20 132 Move 13844 | 38 416 301 189 199 214 88 186 439 245 330 1244 327 514 446 207 59 666 1073 77 1282 170 184 383 172 1267 151 231 167 208 1115 553 175 309 219 Hop . | . . . . . . . . . . . . . . . . . . . . . . . . . . . . . . . . . . . Pick Up 187 | 1 9 4 1 1 1 . 5 7 . 5 6 1 8 5 6 1 8 17 1 18 . . 2 . 20 4 7 3 2 23 10 5 3 3 Fast Attach 93 | 4 6 . 3 . . . 6 9 . 2 1 . 10 2 . 2 . 5 . 4 1 . 1 1 9 1 3 5 1 8 2 5 1 1 Attach 110 | . . . . 1 . . 2 5 . 1 . 7 1 . . . 9 10 . 6 1 . 3 9 20 4 5 . 3 12 2 1 2 6 Detach 83 | 1 2 . . . . . 1 . . . . 2 3 . . . 6 6 . 7 3 . 1 7 18 4 4 . 3 8 1 2 1 3 Swap 297 | . 2 . 2 . . . 4 2 . 1 2 5 3 9 9 3 36 34 1 42 . . 1 4 32 2 15 . 1 39 35 1 5 7 Drop 181 | . 7 3 3 . 2 . 6 5 . 2 6 1 7 6 3 3 6 18 3 15 1 . 4 . 17 3 7 7 3 24 8 8 1 2 Fire 686 | . 48 4 39 . . . 19 34 . 15 1 30 10 27 13 5 47 29 19 29 2 2 4 35 71 . 40 . 10 104 35 . 9 5 Melee 323 | . . . . . . . . . . . . . 2 7 5 . 31 42 . 57 4 . 9 . 35 16 5 1 9 47 28 3 7 15 Ram . | . . . . . . . . . . . . . . . . . . . . . . . . . . . . . . . . . . . Kick . | . . . . . . . . . . . . . . . . . . . . . . . . . . . . . . . . . . . Crush . | . . . . . . . . . . . . . . . . . . . . . . . . . . . . . . . . . . . Escape Stasis 15 | . . . . . . . . . . . . . . . . . 15 . . . . . . . . . . . . . . . . . Rewire 26 | . . . . . . . . . . . . . . 14 . . . . . . . . . . . . . . . . 12 . . . Trap . | . . . . . . . . . . . . . . . . . . . . . . . . . . . . . . . . . . . Miscellaneous 1 | . . . . . . . . . . . . . . 1 . . . . . . . . . . . . . . . . . . . . Route ------- -11/Scrapyard -10/Materials (discovered 4 exits: *Mat x3 / *Min) -10/Mines -9/Materials (discovered 2 exits: *Min x2) -9/Mines (discovered 2 exits: *Mat / *Exi) -9/Exiles -8/Mines -8/Materials -7/Factory (discovered 3 exits: *Sto / *Low x2) -7/Lower Caves -7/Lower Caves (discovered 2 exits: *Fac / *Zio) -7/Zion -6/Proximity Caves -6/Factory (discovered 4 exits: Low x2 / *Ext x2) -6/Extension (discovered 2 exits: *Fac / *Cet) -6/Cetus (discovered 2 exits: *Fac / [*Arc]) -6/Archives (discovered 2 exits: *Fac / *Hub) -6/Hub_04(d) (discovered 3 exits: *Fac x3) -5/Factory (discovered 3 exits: *Fac / *Upp x2) -5/Waste -5/Factory (discovered 4 exits: *Fac x2 / *Upp x2) -5/Upper Caves -5/Upper Caves -5/Warlord -4/Proximity Caves -4/Factory (discovered 3 exits: *Res / *Upp x2) -4/Upper Caves -4/Upper Caves (discovered 2 exits: Res / *Zhi) -4/Zhirov -3/Proximity Caves -3/Research (discovered 6 exits: *Res x3 / *Arm / Tes x2) -3/Armory (discovered 3 exits: Res x2 / *Lab) -3/Lab -2/Research -1/Access (discovered 2 exits: [*Sur] / Com) To Epsilon Eridani History --------- Turn | Location | Event 17 | -11/Scrapyard | Discovered new exit (range 16) 81 | -11/Scrapyard | Entered Materials 276 | -10/Materials | Discovered new exit (range 15) 308 | -10/Materials | Build established: Mutant 382 | -10/Materials | Discovered new exit (range 13) 432 | -10/Materials | Identified exit to Materials 503 | -10/Materials | Core integrity fell below 50% 729 | -10/Materials | Discovered new exit (range 8) 741 | -10/Materials | Entered Mines 801 | -10/Mines | Met a Derelict shopkeep closing up shop 1193 | -10/Mines | Learned location of Zion (-7) 1205 | -10/Mines | Discovered exit to Materials (range 9) 1222 | -10/Mines | Entered Materials 1222 | -9/Materials | Evolved 2 slots: Utility x2 1513 | -9/Materials | Repaired Weight Redist. System 1577 | -9/Materials | Identified exit to Mines 1664 | -9/Materials | Entered Mines 1693 | -9/Mines | Discovered new exit (range 12) 1755 | -9/Mines | Received a Rocket Launcher from a helpful Derelict 1957 | -9/Mines | Deemed a non-threat by the Exiles lab entrance 1959 | -9/Mines | Discovered new exit (range 5) 1965 | -9/Mines | Entered Exiles 2000 | -9/Exiles | Met 8R-AWN 2025 | -9/Exiles | Met EX-HEX 2070 | -9/Exiles | Met EX-BIN 2087 | -9/Exiles | Aligned with FarCom system 2088 | -9/Exiles | Given EX-Vault access code 2129 | -9/Exiles | Opened EX-Vault 2140 | -9/Exiles | Found AWS/Gauss 2176 | -9/Exiles | Warned to stay clear of 0b10 Research branches 2192 | -9/Exiles | Exiles lab attacked by MAIN.C 2267 | -9/Exiles | Discovered new exit (range 14) 2288 | -9/Exiles | Left Exiles lab with AWS/Gauss 2288 | -9/Exiles | Entered Mines 2402 | -8/Mines | Discovered new exit (range 11) 2424 | -8/Mines | Entered Materials 2424 | -8/Materials | Evolved 2 slots: Power x1, Utility x1 2477 | -8/Materials | Repaired Hvy. Particle Cannon 2727 | -8/Materials | Discovered new exit (range 5) 2796 | -8/Materials | Entered Factory 2796 | -7/Factory | Evolved 2 slots: Utility x2 2821 | -7/Factory | Discovered new exit (range 9) 2963 | -7/Factory | Identified exit to Storage 2963 | -7/Factory | Identified exit to Lower Caves 3162 | -7/Factory | Lost 5 parts (2p1u2w) 3416 | -7/Factory | Entered Lower Caves 3572 | -7/Lower Caves | Encountered a Warlord checkpoint 3648 | -7/Lower Caves | Discovered new exit (range 4) 3661 | -7/Lower Caves | Entered another Lower Caves area 3672 | -7/Lower Caves | Spotted B-75 Beast 3706 | -7/Lower Caves | Discovered new exit (range 16) 4087 | -7/Lower Caves | Discovered new exit (range 12) 4098 | -7/Lower Caves | Entered Zion 4148 | -7/Zion | System corruption cleaned by Quarantine Array 4214 | -7/Zion | Learned Factory stockpile data 4234 | -7/Zion | Learned location of Warlord (-5) 4302 | -7/Zion | Learned location of Recycling (-7) 4482 | -7/Zion | Given A8's code to call for help 4629 | -7/Zion | Received a visual enhancement algorithm 4790 | -7/Zion | Visited the Megawrench Repair Shop 4790 | -7/Zion | Megawrench repaired 10 parts 4907 | -7/Zion | Learned Factory emergency access door positions 5132 | -7/Zion | Discovered new exit (range 15) 5357 | -7/Zion | Entered Proximity Caves 5363 | -6/Proximity Caves | Core integrity fell below 50% 5889 | -6/Proximity Caves | Discovered new exit (range 14) 5953 | -6/Proximity Caves | Entered Factory 5953 | -6/Factory | Evolved 2 slots: Utility x2 6313 | -6/Factory | Identified exit to Lower Caves 6313 | -6/Factory | Identified exit to Extension 6356 | -6/Factory | Found Prototype Launcher 6356 | -6/Factory | Identified Rocket Array 6359 | -6/Factory | Found Rocket Array 6643 | -6/Factory | Repaired Adv. Weight Redist. System 6792 | -6/Factory | Build established: Hacker-Mutant 6864 | -6/Factory | Central database locked down 6870 | -6/Factory | Entered Extension 6873 | -6/Extension | Disrupted transfer network 7026 | -6/Extension | Rescued A7 7054 | -6/Extension | Rescued a captive Derelict 7071 | -6/Extension | Energy Cycler disabled 7071 | -6/Extension | Rescued a captive Derelict 7071 | -6/Extension | Rescued a captive Derelict 7073 | -6/Extension | Rescued a captive Derelict 7075 | -6/Extension | Rescued a captive Derelict 7078 | -6/Extension | Rescued a captive Derelict 7088 | -6/Extension | Rescued a captive Derelict 7684 | -6/Extension | Discovered new exit (range 10) 7685 | -6/Extension | Discovered new exit (range 6) 7715 | -6/Extension | Entered Cetus 7715 | -6/Cetus | Accompanied by 8 allies 7720 | -6/Cetus | Acquired a Cetus Manufacturing Module code from A7 7746 | -6/Cetus | Spotted Cetus Guard 7746 | -6/Cetus | Allies destroyed Cetus Guard 7747 | -6/Cetus | Spotted Cetus Guard 7751 | -6/Cetus | Spotted Cetus Guard 7766 | -6/Cetus | Allies destroyed Cetus Guard 7769 | -6/Cetus | Allies destroyed Cetus Guard 7868 | -6/Cetus | Started Cetus Manufacturing Module 7878 | -6/Cetus | Escorted A7 to Cetus Mainframe 7893 | -6/Cetus | Manufactured an Enhanced Grunt 7918 | -6/Cetus | Manufactured an Enhanced Grunt 7943 | -6/Cetus | Manufactured an Enhanced Grunt 7963 | -6/Cetus | Discovered new exit (range 16) 7968 | -6/Cetus | Manufactured an Enhanced Grunt 7991 | -6/Cetus | Spotted Cetus Guard 7991 | -6/Cetus | Spotted Cetus Guard 7993 | -6/Cetus | Manufactured an Enhanced Grunt 7994 | -6/Cetus | Spotted Cetus Guard 7994 | -6/Cetus | Spotted Cetus Guard 7997 | -6/Cetus | Destroyed Cetus Guard 8004 | -6/Cetus | Allies destroyed Cetus Guard 8006 | -6/Cetus | Allies destroyed Cetus Guard 8008 | -6/Cetus | Allies destroyed Cetus Guard 8037 | -6/Cetus | Discovered new exit (range 15) 8045 | -6/Cetus | Met Revision 17 8114 | -6/Cetus | Destroyed A7 8122 | -6/Cetus | Extracted ID and sensor layout for unrecognized location from A7's data core 8127 | -6/Cetus | Entered Archives 8127 | -6/Archives | Accompanied by 5 allies 8179 | -6/Archives | Discovered new exit (range 15) 8195 | -6/Archives | Discovered new exit (range 15) 8218 | -6/Archives | Entered Hub_04(d) 8218 | -6/Hub_04(d) | Accompanied by 3 allies 8314 | -6/Hub_04(d) | Garrison activated, responded to threat 8537 | -6/Hub_04(d) | Discovered new exit (range 6) 8918 | -6/Hub_04(d) | First assault squad dispatched 8990 | -6/Hub_04(d) | Discovered new exit (range 12) 9000 | -6/Hub_04(d) | Destroyed 13 combat bots 9166 | -6/Hub_04(d) | Build established: Scavenger-Mutant 9219 | -6/Hub_04(d) | Discovered new exit (range 15) 9379 | -6/Hub_04(d) | Network Hub disabled 9386 | -6/Hub_04(d) | Found Prototype Processor 9391 | -6/Hub_04(d) | Entered Factory 9391 | -5/Factory | Accompanied by 2 allies 9391 | -5/Factory | Evolved 2 slots: Utility x2 9654 | -5/Factory | Identified Exp. Terrain Scan Processor 9703 | -5/Factory | Discovered new exit (range 8) 9808 | -5/Factory | Found Prototype Device 9809 | -5/Factory | Identified Exp. Thermal Shield 10007 | -5/Factory | Discovered new exit (range 18) 10049 | -5/Factory | Discovered new exit (range 12) 10456 | -5/Factory | Build established: Scavenger-Assassin 10562 | -5/Factory | Central database locked down 10638 | -5/Factory | Fabricated Hyp. Gauss Cannon? 10987 | -5/Factory | Build established: Scavenger-Mutant 11112 | -5/Factory | Fabricated Inertial Stasis Machine (x1) 11340 | -5/Factory | Sucked down chute 11340 | -5/Factory | Entered Waste 11341 | -5/Waste | Met a frightened Derelict 11355 | -5/Waste | EMP discharged 11364 | -5/Waste | Spotted C-40 Crusher 11378 | -5/Waste | Destroyed C-40 Crusher 11386 | -5/Waste | Spotted C-40 Crusher 11390 | -5/Waste | Found Damper Plating 11391 | -5/Waste | Destroyed C-40 Crusher 11412 | -5/Waste | Spotted C-40 Crusher 11412 | -5/Waste | Spotted C-40 Crusher 11422 | -5/Waste | Destroyed C-40 Crusher 11431 | -5/Waste | Spotted C-40 Crusher 11444 | -5/Waste | Destroyed C-40 Crusher 11455 | -5/Waste | EMP discharged 11455 | -5/Waste | System corruption reached 10% 11462 | -5/Waste | Discovered new exit (range 15) 11486 | -5/Waste | Entered Factory 11486 | -5/Factory | Accompanied by 1 ally 11544 | -5/Factory | Discovered new exit (range 13) 11654 | -5/Factory | Identified exit to Upper Caves 11781 | -5/Factory | Repaired Lrg. Storage Unit 11901 | -5/Factory | Repaired Centrium Medium Armor Plating 12011 | -5/Factory | Build established: Hacker-Assassin 12819 | -5/Factory | Discovered new exit (range 15) 12837 | -5/Factory | Central database locked down 13298 | -5/Factory | Fabricated Exp. Utility Shielding (x1) 13453 | -5/Factory | Fabricated Exp. Terrain Scanner (x1) 13493 | -5/Factory | Local fabrication network quarantined 13606 | -5/Factory | Fabricated Exp. Terrain Scan Processor (x1) 13676 | -5/Factory | Build established: Hacker-Mutant 14017 | -5/Factory | Entered Upper Caves 14164 | -5/Upper Caves | Discovered new exit (range 23) 14208 | -5/Upper Caves | Entered another Upper Caves area 14259 | -5/Upper Caves | Learned Factory emergency access door positions 14336 | -5/Upper Caves | Encountered a Warlord checkpoint 14348 | -5/Upper Caves | Discovered new exit (range 29) 14399 | -5/Upper Caves | Entered Warlord 14407 | -5/Warlord | Discovered new exit (range 30) 14511 | -5/Warlord | Visited the Vortex Lab 14522 | -5/Warlord | Warlord's base attacked by MAIN.C 14589 | -5/Warlord | Met Warlord 14711 | -5/Warlord | Learned location of Command (-1) 14712 | -5/Warlord | Learned 4 Armory zone layouts 14872 | -5/Warlord | Warlord forces counterattacked 14889 | -5/Warlord | Opened side exit 14944 | -5/Warlord | Entered Proximity Caves 15016 | -4/Proximity Caves | Spotted B-86 Titan 15228 | -4/Proximity Caves | Discovered new exit (range 14) 15241 | -4/Proximity Caves | Entered Factory 15241 | -4/Factory | Evolved 2 slots: Utility x2 15381 | -4/Factory | Discovered new exit (range 16) 15623 | -4/Factory | Discovered new exit (range 29) 15660 | -4/Factory | Repaired Hyp. Gauss Cannon 15689 | -4/Factory | Repaired Hyp. Gauss Cannon 15744 | -4/Factory | Repaired Centrium Medium Armor Plating 15797 | -4/Factory | Found Quantum Capacitor 15840 | -4/Factory | Discovered new exit (range 24) 15980 | -4/Factory | Found Prototype Processor 16546 | -4/Factory | Identified Exp. Signal Interpreter 16638 | -4/Factory | Fabricated Exp. Utility Shielding (x1) 16738 | -4/Factory | Local fabrication network quarantined 16752 | -4/Factory | Fabricated Inertial Stasis Machine? 16816 | -4/Factory | Fabricated Exp. Utility Shielding? 16818 | -4/Factory | Build established: Hacker-Assassin 17386 | -4/Factory | Build established: Hacker-Mutant 17620 | -4/Factory | Repaired Inertial Stasis Machine? 17689 | -4/Factory | Repaired Adv. Variable Charge Gun 17734 | -4/Factory | Repaired Imp. Energy Well 17947 | -4/Factory | Identified exit to Research 17993 | -4/Factory | Identified exit to Upper Caves 18138 | -4/Factory | Entered Upper Caves 18143 | -4/Upper Caves | Spotted B-86 Titan 18323 | -4/Upper Caves | Discovered new exit (range 29) 18375 | -4/Upper Caves | Entered another Upper Caves area 18381 | -4/Upper Caves | Discovered exit to Research (range 30) 18820 | -4/Upper Caves | Discovered new exit (range 28) 18854 | -4/Upper Caves | Learned Research security intel 18872 | -4/Upper Caves | Entered Zhirov 18872 | -4/Zhirov | Discovered new exit (range 3) 18891 | -4/Zhirov | Met Zhirov 18912 | -4/Zhirov | Learned location of Quarantine (-2) 18912 | -4/Zhirov | Learned location of Testing (-3) 18917 | -4/Zhirov | Zhirov requested help retrieving the SGEMP Prototype 18934 | -4/Zhirov | Found Alien Artifact 18934 | -4/Zhirov | Identified Integrated Reactor 18934 | -4/Zhirov | Installed Integrated Reactor, increased core energy generation (+2%) 19017 | -4/Zhirov | Found Alien Artifact 19056 | -4/Zhirov | Entered Proximity Caves 19120 | -3/Proximity Caves | Acquired the password to a Derelict Tinkerer's latest research 19127 | -3/Proximity Caves | Found Prototype Special Weapon 19242 | -3/Proximity Caves | Discovered exit to Research (range 26) 19317 | -3/Proximity Caves | Attracted the attention of an 0b10 checkpoint 19322 | -3/Proximity Caves | Entered Research 19322 | -3/Research | Evolved 2 slots: Utility x2 19337 | -3/Research | Identified exit to Research 19473 | -3/Research | Found Molecular Scythe 19496 | -3/Research | Identified exit to Armory 19496 | -3/Research | Identified exit to Testing 19533 | -3/Research | Repaired Exp. Utility Shielding 19564 | -3/Research | Found Enh. Force Lance 19631 | -3/Research | Build established: Hacker-Assassin 19765 | -3/Research | Repaired Exp. Utility Shielding 19794 | -3/Research | Repaired Hyp. Gauss Cannon 19918 | -3/Research | Identified Transdimensional Reconstructor 19918 | -3/Research | Identified Molecular Deconstructor 20009 | -3/Research | Lost 3 parts (2p1w) 20041 | -3/Research | Destroyed 8 combat bots 20286 | -3/Research | Found Gamma Bomb Array 20667 | -3/Research | Fabricated Adv. Powered Armor (x1) 20710 | -3/Research | Fabricated Adv. Powered Armor? 21304 | -3/Research | Repaired Exp. Utility Shielding 21456 | -3/Research | Repaired Exp. Utility Shielding 21550 | -3/Research | Build established: Hacker-Mutant 21561 | -3/Research | Entered Armory 21562 | -3/Armory | Identified exit to Lab 21572 | -3/Armory | Found Prototype Launcher 21572 | -3/Armory | Identified Com. Tesla Bomb Launcher 21576 | -3/Armory | Found Com. Tesla Bomb Launcher 21578 | -3/Armory | Found Com. Tesla Bomb Launcher 21580 | -3/Armory | Found Com. Tesla Bomb Launcher 21630 | -3/Armory | Central database locked down 21821 | -3/Armory | Discovered exit to Research (range 20) 22107 | -3/Armory | System corruption reached 10% 22219 | -3/Armory | Repaired Exp. Utility Shielding 22226 | -3/Armory | Warped through subspace to slip node 22430 | -3/Armory | Repaired Adv. Powered Armor? 22535 | -3/Armory | Fabricated Mni. Smartbomb Launcher? 22706 | -3/Armory | Entered Lab 22706 | -3/Lab | Discovered exit to Research (range 9) 22718 | -3/Lab | Hidden lab's door opened automatically 22718 | -3/Lab | Sensor layout match revealed 22719 | -3/Lab | Gained access to the hidden lab's interior 22748 | -3/Lab | Found Integrated Reactor 22748 | -3/Lab | Installed Integrated Reactor, increased core energy generation (+2%) 22758 | -3/Lab | Found Transdimensional Reconstructor 22780 | -3/Lab | Found Prototype Protection 22780 | -3/Lab | Identified Exp. Powered Armor 22785 | -3/Lab | Found Prototype Energy Gun 22785 | -3/Lab | Identified Tachyon Dispersion Ray 22794 | -3/Lab | Found Prototype Hackware 22794 | -3/Lab | Identified Quantum Router 22873 | -3/Lab | Found Alien Artifact 22910 | -3/Lab | Entered Research 22910 | -2/Research | Warlord forces began assault on 0b10 22910 | -2/Research | Evolved 2 slots: Utility x2 23020 | -2/Research | Research machine network offline 23115 | -2/Research | Met up with Warlord 23191 | -2/Research | Discovered new exit (range 26) 23218 | -2/Research | Build established: Wizard-Assassin 23224 | -2/Research | Borebot progress halted 23249 | -2/Research | Borebot progress halted 23256 | -2/Research | Identified exit to Access 23289 | -2/Research | Borebot progress halted 23293 | -2/Research | Entered Access 23293 | -1/Access | Evolved 2 slots: Utility x1, Weapon x1 23305 | -1/Access | Identified Core Regenerator 23332 | -1/Access | Identified exit to Command 23400 | -1/Access | Garrison activated, responded to threat 23546 | -1/Access | Discovered new exit (range 29) 23569 | -1/Access | Repaired Exp. Utility Shielding 23615 | -1/Access | Repaired Exp. Coolant Injector 23755 | *** | Escaped! Last Messages --------------- Repairing Exp. Coolant Injector... ETC: 45 23585_ K-01 Serf collects debris. 23614_ U-05 Engineer builds a Wall. 23615_ Repair station completes Exp. Coolant Injector repairs. 23621_ Acquired Exp. Coolant Injector. 23661_ Destroyed Antigrav System. 23733_ K-01 Serf suffers critical hit. 23733_ K-01 Serf destroyed. 23734_ Acquired 21 matter. 23735_ K-01 Serf collects debris. 23737_ R-10 Processor collects Wheel. 23739_ K-01 Serf collects debris. 23740_ K-01 Serf cleans the Terminal. 23747_ Connecting with Terminal... >>Open Sealed Barrier opened. 23748_ Terminal disabled. 23750_ The Access Shell folds into the floor. [Achievement: The Little Core That Could] Map ----- +----------------------------------------------------+ | #####?###?# ? ## ?" ? ? #######???????? | | ?##?#### #? ## ?? ########??????? | | ?####### ## ? ##? ?? ? ###+#######??###???????? | | ######## #? ? ??#?###+#?# #??######??## ????? | | ###########? ? # ? ??"" ? ? ? ? ????? | | ? ? # # T" ? ? ? ?? ???? | | # # ####### ??#?#####?#???????? | | ? # ? +? ########?###########?##?? ??? | | # # #######?#########?###### ?? | | # # ############## ?? #? ? | | ? ###?#### #############? ? # ? ?? | | ? # ? w ############## ? ?? # ??? | | # ? ############## +? ? ?? | | # ##################### ?? #?? ?## | | + ##################### ? ? # ?#? | | # ##################### ? ? #? ??? | | # ###############?###?#??? ?+ ? ?? | | ########### ####################?#########? ??# | | ########### #########################?#??## ?? ? | | ########### ####### #######################? ? +? | | ########### """ """ """" ? ??#??? ?? | | ########### """ "" """? BB #?# ??? | | ########### g """" BB?? ?## ????? | | ###########k """" ?? ? ?#? | | ######### "" """" ? ???# | | #########k @" """" ? ? ?? ?? | | ######### """" ? ? ?? | | ######### """" BB ?#######? | | ######### p """" BB #####?### | | #########k """" ######?#? | | ######### ####### ######################?###??? | | ######### ################################????# | | ########### ##################################?## | | ########### ################################??#?? | | w###############################?#???? | | ########### #########"""T"""###############??#?## | | ########### #########""" """#################???# | | ########### #######??#????#? | | ########### ##########?????? | | ########### #########??????? | | ## # ########???????? | | # # ########?#?????? | | ## "" # #########??????? | | ##""" # ########???????? | | ##"R + #########???#??? | | ##""" # + ? ????? | | ##""" ##+#+#############+####+######?????????? | | ## # ## #####??? ????? | | ## # ## #####????????? | | ########### ## " ####?????????? | +----------------------------------------------------+ Best States ------------- Heat Dissipation 67 Coolant Potential 120 Energy Generation 51 Energy Capacity 1040 Matter Stores 300 Matter Capacity 600 Sight Range 16 Terrain Scan Range 30 Terrain Scan Density 1010 Jamming Range 14 Cloak Strength 4 Additional Mass Support 48 Armor Coverage 1425 Resistance: KI 25 Resistance: TH 30 Resistance: EM 90 Utility Shielding 90 Weapon Cycling 20 Evasion (%) 50 Target Analysis 6 Offensive Hacking 34 Defensive Hacking 39 Item Schematics ----------------- Adv. Weight Redist. System | -8/Materials | Hacked Imp. Hacking Suite | -6/Factory | Hacked Inertial Stasis Machine | -5/Factory | Scanalyzed Centrium Medium Armor Plating | -5/Factory | Scanalyzed Exp. Terrain Scan Processor | -5/Factory | Scanalyzed Hyp. Gauss Cannon | -5/Factory | Hacked Exp. Utility Shielding | -5/Factory | Hacked Exp. Terrain Scanner | -5/Factory | Hacked Imp. Weapon Cycler | -5/Factory | Scanalyzed Exp. Signal Interpreter | -4/Factory | Scanalyzed Assault Drone Bay | -4/Zhirov | Free Exp. Heat Sink | -4/Zhirov | Free Exp. Optical Array | -4/Zhirov | Free Imp. Arc Thrower | -4/Zhirov | Free Adv. Powered Armor | -3/Research | Hacked Mni. Smartbomb Launcher | -3/Armory | Hacked Robot Schematics ------------------ None Fabricated ------------ Hyp. Gauss Cannon | x2 | -5/Factory Inertial Stasis Machine | x1 | -5/Factory Exp. Utility Shielding | x1 | -5/Factory Exp. Terrain Scanner | x1 | -5/Factory Exp. Terrain Scan Processor | x1 | -5/Factory Exp. Utility Shielding | x1 | -4/Factory Inertial Stasis Machine | x1 | -4/Factory Exp. Utility Shielding | x1 | -4/Factory Adv. Powered Armor | x1 | -3/Research Adv. Powered Armor | x1 | -3/Research Mni. Smartbomb Launcher | x1 | -3/Armory Alien Tech Used ----------------- Integrated Reactor Transdimensional Reconstructor Achievements -------------- The Little Core That Could Challenges ------------ None Game ------ Seed NovaDimensionalMaul Manual? 0 Play Time 05:07:19 Cumulative 755.7 hours Start 2019.11.22 @ 22:09:45 End 2019.11.23 @ 11:48:36 Sessions 7 Manual Loads 0 Difficulty Rogue Special Mode None Game No. 209 Rogue 209 Adventurer 0 Explorer 0 Win Type 0 Total 40 Types 31/0/2/3/2/1/1 Lore% 96 Gallery% 98 Achievement% 94 Wizard Run 0 Options --------- ASCII 0 Keyboard 1 Movement Numpad Keybinds 0 Fullscreen 1 Font 18/SmallcapsGlow Map View 76x50 Tactical HUD 1 Map Filters NONE Filters NONE Steam 1 RUN: aa61c33b-68a9-4dec-92db-3df1d83cc1d1